[Event "2026 Biel Blitz Open"]
[Site "Biel, CH"]
[Date "2026.07.19"]
[Round "7"]
[White "Kwiatkowski, Maciej"]
[Black "Vedant Nayudu"]
[Result "1-0"]
[Board "40"]
[TimeControl "180+2"]
[WhiteFideId "1360175"]
[BlackFideId "33369780"]
[WhiteElo "1967"]
[BlackElo "1732"]
[WhiteClock "0:00:38"]
[BlackClock "0:00:08"]
[Variant "Standard"]
[EndDate "2026.07.19"]
[EndTime "14:03:45"]

1. e4 {[%clk 0:03:03]}  c6 {[%clk 0:03:04]} 2. d4 {[%clk 0:03:03]}  d5 {[%clk 0:03:05]} 3. Nc3 {[%clk 0:03:04]}  dxe4 {[%clk 0:03:05]}
4. Nxe4 {[%clk 0:03:05]}  Nf6 {[%clk 0:03:06]} 5. Ng3 {[%clk 0:03:05]}  h5 {[%clk 0:03:07]} 6. h4 {[%clk 0:03:06]}  Bg4 {[%clk 0:03:08]}
7. Be2 {[%clk 0:03:06]}  e6 {[%clk 0:02:47]} 8. c3 {[%clk 0:03:06]}  Bd6 {[%clk 0:02:47]} 9. Bg5 {[%clk 0:03:03]}  Qc7 {[%clk 0:02:40]}
10. Bxf6 {[%clk 0:02:50]}  Bxe2 {[%clk 0:02:07]} 11. Qxe2 {[%clk 0:02:41]}  Bxg3 {[%clk 0:00:52]} 12. Bxg7 {[%clk 0:01:56]}  Rh7 {[%clk 0:00:40]}
13. Bf6 {[%clk 0:01:52]}  Nd7 {[%clk 0:00:34]} 14. Bg5 {[%clk 0:01:47]}  Bd6 {[%clk 0:00:18]} 15. Nf3 {[%clk 0:01:47]}  f6 {[%clk 0:00:18]}
16. Bd2 {[%clk 0:01:43]}  O-O-O {[%clk 0:00:17]} 17. O-O-O {[%clk 0:01:39]}  Qa5 {[%clk 0:00:16]} 18. Kb1 {[%clk 0:01:36]}  Qf5+ {[%clk 0:00:15]}
19. Ka1 {[%clk 0:01:34]}  Rg7 {[%clk 0:00:14]} 20. g3 {[%clk 0:01:32]}  e5 {[%clk 0:00:14]} 21. Rhe1 {[%clk 0:01:22]}  Re7 {[%clk 0:00:11]}
22. Qe4 {[%clk 0:01:06]}  Qxe4 {[%clk 0:00:07]} 23. Rxe4 {[%clk 0:01:06]}  f5 {[%clk 0:00:08]} 24. Ree1 {[%clk 0:01:06]}  e4 {[%clk 0:00:10]}
25. Ng5 {[%clk 0:01:07]}  Kb8 {[%clk 0:00:06]} 26. Re2 {[%clk 0:01:02]}  Nf6 {[%clk 0:00:06]} 27. Rde1 {[%clk 0:01:00]}  Rde8 {[%clk 0:00:07]}
28. Kb1 {[%clk 0:00:56]}  Kc7 {[%clk 0:00:08]} 29. Kc2 {[%clk 0:00:56]}  Ng4 {[%clk 0:00:08]} 30. Nh3 {[%clk 0:00:54]}  b6 {[%clk 0:00:06]}
31. Nf4 {[%clk 0:00:54]}  Bxf4 {[%clk 0:00:06]} 32. Bxf4+ {[%clk 0:00:55]}  Kd7 {[%clk 0:00:07]} 33. Bg5 {[%clk 0:00:55]}  Re6 {[%clk 0:00:07]}
34. Bf4 {[%clk 0:00:54]}  Nf6 {[%clk 0:00:07]} 35. c4 {[%clk 0:00:53]}  b5 {[%clk 0:00:06]} 36. b3 {[%clk 0:00:47]}  a5 {[%clk 0:00:06]}
37. Kc3 {[%clk 0:00:36]}  Ng4 {[%clk 0:00:04]} 38. d5 {[%clk 0:00:36]}  cxd5 {[%clk 0:00:05]} 39. cxd5 {[%clk 0:00:36]}  Rb6 {[%clk 0:00:04]}
40. Kd4 {[%clk 0:00:32]}  a4 {[%clk 0:00:05]} 41. b4 {[%clk 0:00:32]}  Rc8 {[%clk 0:00:05]} 42. Rc1 {[%clk 0:00:33]}  Ke7 {[%clk 0:00:03]}
43. Rxc8 {[%clk 0:00:33]}  Kd7 {[%clk 0:00:04]} 44. Rc7+ {[%clk 0:00:31]}  Ke8 {[%clk 0:00:05]} 45. Rec2 {[%clk 0:00:31]}  Nf6 {[%clk 0:00:04]}
46. Rc8+ {[%clk 0:00:31]}  Kf7 {[%clk 0:00:05]} 47. R2c7+ {[%clk 0:00:32]}  Kg6 {[%clk 0:00:06]} 48. Rc6 {[%clk 0:00:32]}  Rb7 {[%clk 0:00:05]}
49. Bg5 {[%clk 0:00:33]}  Rf7 {[%clk 0:00:05]} 50. Rxf6+ {[%clk 0:00:34]}  Rxf6 {[%clk 0:00:07]} 51. Bxf6 {[%clk 0:00:35]}  Kxf6 {[%clk 0:00:07]}
52. Rc6+ {[%clk 0:00:36]}  Ke7 {[%clk 0:00:08]} 53. Ke5 {[%clk 0:00:37]}  f4 {[%clk 0:00:07]} 54. gxf4 {[%clk 0:00:38]}  Kd7 {[%clk 0:00:08]}
55. Rb6 {[%clk 0:00:38]} 1-0

[Event "2026 Biel Blitz Open"]
[Site "Biel, CH"]
[Date "2026.07.19"]
[Round "7"]
[White "Huang,Hsuan-Chen"]
[Black "Ragios, Konstantinos"]
[Result "1-0"]
[Board "42"]
[TimeControl "180+2"]
[WhiteFideId "16303121"]
[BlackFideId "4210484"]
[WhiteElo "1833"]
[BlackElo "1957"]
[WhiteClock "0:00:39"]
[BlackClock "0:00:07"]
[Variant "Standard"]
[EndDate "2026.07.19"]
[EndTime "14:04:35"]

1. d4 {[%clk 0:03:03]}  e6 {[%clk 0:03:04]} 2. Nf3 {[%clk 0:03:02]}  Nf6 {[%clk 0:03:05]} 3. Nbd2 {[%clk 0:03:03]}  b6 {[%clk 0:03:05]}
4. e4 {[%clk 0:03:04]}  Bb7 {[%clk 0:02:45]} 5. Bd3 {[%clk 0:03:04]}  c5 {[%clk 0:02:35]} 6. c3 {[%clk 0:03:04]}  Nc6 {[%clk 0:02:27]}
7. Qe2 {[%clk 0:03:04]}  d6 {[%clk 0:02:23]} 8. O-O {[%clk 0:03:03]}  Be7 {[%clk 0:02:23]} 9. Re1 {[%clk 0:02:59]}  O-O {[%clk 0:02:01]}
10. e5 {[%clk 0:03:00]}  dxe5 {[%clk 0:01:49]} 11. dxe5 {[%clk 0:03:00]}  Nd5 {[%clk 0:01:49]} 12. Ne4 {[%clk 0:03:00]}  Re8 {[%clk 0:01:04]}
13. Ng3 {[%clk 0:02:36]}  Qc7 {[%clk 0:00:50]} 14. Bg5 {[%clk 0:02:12]}  f6 {[%clk 0:00:47]} 15. exf6 {[%clk 0:02:08]}  Bxf6 {[%clk 0:00:47]}
16. Nh5 {[%clk 0:02:04]}  Qf7 {[%clk 0:00:32]} 17. Nxf6+ {[%clk 0:01:47]}  gxf6 {[%clk 0:00:32]} 18. Bd2 {[%clk 0:01:38]}  Rad8 {[%clk 0:00:25]}
19. Rad1 {[%clk 0:01:39]}  e5 {[%clk 0:00:23]} 20. Bc4 {[%clk 0:01:39]}  Nce7 {[%clk 0:00:22]} 21. Bc1 {[%clk 0:01:38]}  Kh8 {[%clk 0:00:23]}
22. Qe4 {[%clk 0:01:29]}  Qg6 {[%clk 0:00:22]} 23. Qh4 {[%clk 0:01:27]}  Nf5 {[%clk 0:00:22]} 24. Qh3 {[%clk 0:01:25]}  Nde7 {[%clk 0:00:15]}
25. Rxd8 {[%clk 0:01:03]}  Rxd8 {[%clk 0:00:16]} 26. Bf1 {[%clk 0:01:02]}  Bc8 {[%clk 0:00:18]} 27. Nh4 {[%clk 0:01:00]}  Nxh4 {[%clk 0:00:14]}
28. Qxh4 {[%clk 0:01:00]}  Nf5 {[%clk 0:00:15]} 29. Qa4 {[%clk 0:00:52]}  Qg7 {[%clk 0:00:14]} 30. Rd1 {[%clk 0:00:51]}  Rxd1 {[%clk 0:00:12]}
31. Qxd1 {[%clk 0:00:52]}  Qd7 {[%clk 0:00:10]} 32. Qh5 {[%clk 0:00:49]}  Nd6 {[%clk 0:00:10]} 33. Bh6 {[%clk 0:00:47]}  Qf7 {[%clk 0:00:09]}
34. Qf3 {[%clk 0:00:45]}  Nf5 {[%clk 0:00:09]} 35. Bc1 {[%clk 0:00:41]}  Bb7 {[%clk 0:00:11]} 36. Qxf5 {[%clk 0:00:41]}  Qe7 {[%clk 0:00:11]}
37. Bh6 {[%clk 0:00:39]}  a5 {[%clk 0:00:09]} 38. Qg4 {[%clk 0:00:39]}  a4 {[%clk 0:00:07]} 39. Bc4 {[%clk 0:00:39]} 1-0

[Event "2026 Biel Blitz Open"]
[Site "Biel, CH"]
[Date "2026.07.19"]
[Round "7"]
[White "Havolli, Daut"]
[Black "Jaggy, Enzo"]
[Result "1-0"]
[Board "44"]
[TimeControl "180+2"]
[WhiteFideId "1315200"]
[BlackFideId "1344919"]
[WhiteElo "1950"]
[BlackElo "1761"]
[WhiteClock "0:01:37"]
[BlackClock "0:01:22"]
[Variant "Standard"]
[EndDate "2026.07.19"]
[EndTime "13:55:40"]

1. d4 {[%clk 0:03:03]}  d5 {[%clk 0:03:03]} 2. Bf4 {[%clk 0:03:05]}  Nf6 {[%clk 0:03:04]} 3. Nc3 {[%clk 0:03:06]}  c6 {[%clk 0:03:03]}
4. f3 {[%clk 0:03:06]}  e6 {[%clk 0:03:02]} 5. Qd2 {[%clk 0:03:07]}  Bb4 {[%clk 0:03:03]} 6. O-O-O {[%clk 0:03:07]}  Qa5 {[%clk 0:03:03]}
7. Kb1 {[%clk 0:02:59]}  Bxc3 {[%clk 0:03:02]} 8. Qxc3 {[%clk 0:03:00]}  Qxc3 {[%clk 0:03:03]} 9. bxc3 {[%clk 0:03:01]}  Nbd7 {[%clk 0:02:59]}
10. Bd6 {[%clk 0:02:54]}  b5 {[%clk 0:02:58]} 11. e3 {[%clk 0:02:45]}  Nb6 {[%clk 0:02:55]} 12. Bd3 {[%clk 0:02:41]}  Nc4 {[%clk 0:02:55]}
13. Bxc4 {[%clk 0:02:42]}  bxc4 {[%clk 0:02:56]} 14. Ne2 {[%clk 0:02:37]}  Kd7 {[%clk 0:02:53]} 15. Bc5 {[%clk 0:02:33]}  Kc7 {[%clk 0:02:48]}
16. g4 {[%clk 0:02:32]}  Nd7 {[%clk 0:02:49]} 17. Ba3 {[%clk 0:02:25]}  e5 {[%clk 0:02:22]} 18. Ng3 {[%clk 0:02:19]}  g6 {[%clk 0:02:17]}
19. Rhe1 {[%clk 0:02:03]}  f6 {[%clk 0:02:12]} 20. h4 {[%clk 0:02:00]}  Nb6 {[%clk 0:01:57]} 21. Kc1 {[%clk 0:01:50]}  Rb8 {[%clk 0:01:42]}
22. Be7 {[%clk 0:01:49]}  exd4 {[%clk 0:01:24]} 23. Bxf6 {[%clk 0:01:36]}  Rf8 {[%clk 0:01:22]} 24. Be5+ {[%clk 0:01:37]} 1-0

[Event "2026 Biel Blitz Open"]
[Site "Biel, CH"]
[Date "2026.07.19"]
[Round "7"]
[White "Bujes, Aurelien"]
[Black "Waelti, Thomas"]
[Result "1-0"]
[Board "45"]
[TimeControl "180+2"]
[WhiteFideId "1347179"]
[BlackFideId "1303996"]
[WhiteElo "1741"]
[BlackElo "1940"]
[WhiteClock "0:00:51"]
[BlackClock "0:00:14"]
[Variant "Standard"]
[EndDate "2026.07.19"]
[EndTime "13:59:26"]

1. e4 {[%clk 0:03:03]}  c5 {[%clk 0:03:04]} 2. Nc3 {[%clk 0:03:03]}  e6 {[%clk 0:03:04]} 3. Nf3 {[%clk 0:03:03]}  d5 {[%clk 0:03:04]}
4. exd5 {[%clk 0:03:03]}  exd5 {[%clk 0:03:05]} 5. Bb5+ {[%clk 0:03:02]}  Nc6 {[%clk 0:03:03]} 6. O-O {[%clk 0:03:01]}  Nf6 {[%clk 0:03:03]}
7. Re1+ {[%clk 0:03:00]}  Be7 {[%clk 0:03:04]} 8. d3 {[%clk 0:02:52]}  O-O {[%clk 0:03:04]} 9. Bf4 {[%clk 0:02:52]}  Bg4 {[%clk 0:03:00]}
10. h3 {[%clk 0:02:50]}  Bh5 {[%clk 0:03:01]} 11. Bxc6 {[%clk 0:02:45]}  bxc6 {[%clk 0:03:02]} 12. Na4 {[%clk 0:02:23]}  Re8 {[%clk 0:02:43]}
13. c3 {[%clk 0:02:11]}  Qa5 {[%clk 0:02:26]} 14. b3 {[%clk 0:02:07]}  Bf8 {[%clk 0:02:11]} 15. Rxe8 {[%clk 0:02:01]}  Rxe8 {[%clk 0:02:12]}
16. d4 {[%clk 0:01:56]}  cxd4 {[%clk 0:02:03]} 17. cxd4 {[%clk 0:01:56]}  Ne4 {[%clk 0:01:43]} 18. Qd3 {[%clk 0:01:52]}  Bxf3 {[%clk 0:01:33]}
19. Qxf3 {[%clk 0:01:51]}  Qd8 {[%clk 0:01:03]} 20. Rc1 {[%clk 0:01:48]}  Qd7 {[%clk 0:00:54]} 21. Nc3 {[%clk 0:01:38]}  Bb4 {[%clk 0:00:47]}
22. Nxe4 {[%clk 0:01:37]}  Rxe4 {[%clk 0:00:43]} 23. a4 {[%clk 0:01:22]}  Rxd4 {[%clk 0:00:40]} 24. Be3 {[%clk 0:01:17]}  Re4 {[%clk 0:00:38]}
25. Qd1 {[%clk 0:01:05]}  Qe6 {[%clk 0:00:36]} 26. Qd3 {[%clk 0:01:05]}  f5 {[%clk 0:00:33]} 27. Qa6 {[%clk 0:01:04]}  c5 {[%clk 0:00:19]}
28. Qxa7 {[%clk 0:01:02]}  d4 {[%clk 0:00:15]} 29. Qb8+ {[%clk 0:00:57]}  Kf7 {[%clk 0:00:16]} 30. Bf4 {[%clk 0:00:57]}  g5 {[%clk 0:00:11]}
31. Bd6 {[%clk 0:00:51]}  Re1+ {[%clk 0:00:11]} 32. Rxe1 {[%clk 0:00:51]}  Qxe1+ {[%clk 0:00:13]} 33. Kh2 {[%clk 0:00:52]}  Qxf2 {[%clk 0:00:12]}
34. Qf8+ {[%clk 0:00:52]}  Kg6 {[%clk 0:00:13]} 35. Qe8+ {[%clk 0:00:53]}  Kh6 {[%clk 0:00:14]} 36. Bf8# {[%clk 0:00:51]} 1-0

[Event "2026 Biel Blitz Open"]
[Site "Biel, CH"]
[Date "2026.07.19"]
[Round "7"]
[White "Knuesel, Jolan"]
[Black "Coban, Ege"]
[Result "0-1"]
[Board "46"]
[TimeControl "180+2"]
[WhiteFideId "1364529"]
[BlackFideId "26320304"]
[WhiteElo "1728"]
[BlackElo "1936"]
[WhiteClock "0:00:06"]
[BlackClock "0:02:07"]
[Variant "Standard"]
[EndDate "2026.07.19"]
[EndTime "13:55:58"]

1. d4 {[%clk 0:03:03]}  Nf6 {[%clk 0:03:03]} 2. Bf4 {[%clk 0:03:03]}  c5 {[%clk 0:03:04]} 3. e3 {[%clk 0:03:02]}  Nc6 {[%clk 0:03:00]}
4. Nf3 {[%clk 0:03:00]}  d5 {[%clk 0:02:59]} 5. c3 {[%clk 0:03:00]}  Qb6 {[%clk 0:03:00]} 6. Qc1 {[%clk 0:02:53]}  g6 {[%clk 0:02:59]}
7. Be2 {[%clk 0:02:52]}  Bg7 {[%clk 0:02:59]} 8. O-O {[%clk 0:02:51]}  O-O {[%clk 0:02:58]} 9. Nbd2 {[%clk 0:02:49]}  Bf5 {[%clk 0:02:56]}
10. Ne5 {[%clk 0:02:30]}  Rac8 {[%clk 0:02:50]} 11. Nb3 {[%clk 0:02:12]}  cxd4 {[%clk 0:02:45]} 12. Nxd4 {[%clk 0:01:46]}  Nxd4 {[%clk 0:02:39]}
13. exd4 {[%clk 0:01:46]}  Ne4 {[%clk 0:02:35]} 14. f3 {[%clk 0:01:29]}  Nd6 {[%clk 0:02:34]} 15. Qd2 {[%clk 0:01:19]}  f6 {[%clk 0:02:31]}
16. Nd3 {[%clk 0:01:09]}  Nc4 {[%clk 0:02:32]} 17. Qe1 {[%clk 0:00:55]}  e5 {[%clk 0:02:29]} 18. Bg3 {[%clk 0:00:25]}  Ne3 {[%clk 0:02:25]}
19. Bf2 {[%clk 0:00:08]}  Nxf1 {[%clk 0:02:16]} 20. Qxf1 {[%clk 0:00:09]}  Bxd3 {[%clk 0:02:14]} 21. Bxd3 {[%clk 0:00:09]}  Qxb2 {[%clk 0:02:11]}
22. dxe5 {[%clk 0:00:08]}  fxe5 {[%clk 0:02:09]} 23. c4 {[%clk 0:00:07]}  e4 {[%clk 0:02:08]} 24. fxe4 {[%clk 0:00:07]}  Rxf2 {[%clk 0:02:07]}
25. Qxf2 {[%clk 0:00:07]}  Qxa1+ {[%clk 0:02:06]} 26. Bf1 {[%clk 0:00:06]}  Bd4 {[%clk 0:02:07]} 0-1

[Event "2026 Biel Blitz Open"]
[Site "Biel, CH"]
[Date "2026.07.19"]
[Round "7"]
[White "Gireada, Lucas"]
[Black "Delion, Helge"]
[Result "1-0"]
[Board "47"]
[TimeControl "180+2"]
[WhiteFideId "1373544"]
[BlackFideId "12914568"]
[WhiteElo "1651"]
[BlackElo "1911"]
[WhiteClock "0:00:30"]
[BlackClock "0:00:12"]
[Variant "Standard"]
[EndDate "2026.07.19"]
[EndTime "14:03:23"]

1. d4 {[%clk 0:03:01]}  Nf6 {[%clk 0:03:03]} 2. c4 {[%clk 0:03:02]}  e6 {[%clk 0:03:03]} 3. Nf3 {[%clk 0:03:03]}  Bb4+ {[%clk 0:03:03]}
4. Bd2 {[%clk 0:03:03]}  Be7 {[%clk 0:03:04]} 5. Nc3 {[%clk 0:03:03]}  d5 {[%clk 0:03:05]} 6. Bf4 {[%clk 0:03:04]}  O-O {[%clk 0:02:47]}
7. e3 {[%clk 0:03:06]}  c6 {[%clk 0:02:35]} 8. Qc2 {[%clk 0:03:03]}  Nbd7 {[%clk 0:02:34]} 9. h3 {[%clk 0:02:51]}  a6 {[%clk 0:02:31]}
10. cxd5 {[%clk 0:02:50]}  exd5 {[%clk 0:02:31]} 11. Bd3 {[%clk 0:02:39]}  Re8 {[%clk 0:02:30]} 12. O-O {[%clk 0:02:39]}  Nf8 {[%clk 0:02:30]}
13. a3 {[%clk 0:02:34]}  Ne6 {[%clk 0:02:25]} 14. Bh2 {[%clk 0:02:31]}  Bd6 {[%clk 0:02:23]} 15. Ne5 {[%clk 0:02:25]}  Ng5 {[%clk 0:01:47]}
16. Bf5 {[%clk 0:02:09]}  Bxf5 {[%clk 0:01:25]} 17. Qxf5 {[%clk 0:02:10]}  Nge4 {[%clk 0:01:13]} 18. Nxe4 {[%clk 0:02:01]}  dxe4 {[%clk 0:01:14]}
19. Ng4 {[%clk 0:01:41]}  Nxg4 {[%clk 0:01:05]} 20. Qxg4 {[%clk 0:01:41]}  Bxh2+ {[%clk 0:01:04]} 21. Kxh2 {[%clk 0:01:41]}  Qd6+ {[%clk 0:00:58]}
22. Qg3 {[%clk 0:01:40]}  Rad8 {[%clk 0:00:56]} 23. Rac1 {[%clk 0:01:27]}  Re6 {[%clk 0:00:44]} 24. Qxd6 {[%clk 0:01:27]}  Rexd6 {[%clk 0:00:42]}
25. Rc5 {[%clk 0:01:24]}  Rd5 {[%clk 0:00:42]} 26. Rfc1 {[%clk 0:01:25]}  f5 {[%clk 0:00:41]} 27. h4 {[%clk 0:01:16]}  g6 {[%clk 0:00:40]}
28. Kg3 {[%clk 0:01:17]}  Kf7 {[%clk 0:00:41]} 29. a4 {[%clk 0:01:14]}  h6 {[%clk 0:00:36]} 30. b4 {[%clk 0:01:14]}  Ke6 {[%clk 0:00:32]}
31. b5 {[%clk 0:01:12]}  axb5 {[%clk 0:00:33]} 32. axb5 {[%clk 0:01:13]}  cxb5 {[%clk 0:00:26]} 33. Rb1 {[%clk 0:01:08]}  Rxc5 {[%clk 0:00:17]}
34. dxc5 {[%clk 0:01:09]}  g5 {[%clk 0:00:15]} 35. Rxb5 {[%clk 0:00:58]}  Rd5 {[%clk 0:00:09]} 36. Rxb7 {[%clk 0:00:53]}  Rxc5 {[%clk 0:00:10]}
37. Rb6+ {[%clk 0:00:54]}  Ke5 {[%clk 0:00:11]} 38. Rxh6 {[%clk 0:00:52]}  f4+ {[%clk 0:00:09]} 39. Kg4 {[%clk 0:00:49]}  fxe3 {[%clk 0:00:09]}
40. fxe3 {[%clk 0:00:49]}  Rc3 {[%clk 0:00:07]} 41. Kxg5 {[%clk 0:00:41]}  Rxe3 {[%clk 0:00:08]} 42. g4 {[%clk 0:00:41]}  Rf3 {[%clk 0:00:09]}
43. Rh8 {[%clk 0:00:39]}  e3 {[%clk 0:00:10]} 44. h5 {[%clk 0:00:36]}  Ke4 {[%clk 0:00:09]} 45. Re8+ {[%clk 0:00:33]}  Kd3 {[%clk 0:00:10]}
46. h6 {[%clk 0:00:34]}  e2 {[%clk 0:00:11]} 47. h7 {[%clk 0:00:34]}  Rh3 {[%clk 0:00:12]} 48. Kg6 {[%clk 0:00:31]}  Re3 {[%clk 0:00:09]}
49. Rxe3+ {[%clk 0:00:27]}  Kxe3 {[%clk 0:00:10]} 50. h8=Q {[%clk 0:00:28]}  e1=Q {[%clk 0:00:12]} 51. Qe8+ {[%clk 0:00:28]}  Kf2 {[%clk 0:00:11]}
52. Qxe1+ {[%clk 0:00:29]}  Kxe1 {[%clk 0:00:12]} 53. Kf7 {[%clk 0:00:30]} 1-0

[Event "2026 Biel Blitz Open"]
[Site "Biel, CH"]
[Date "2026.07.19"]
[Round "7"]
[White "Lupei, Denis"]
[Black "Huettinger, Jonathan"]
[Result "1-0"]
[Board "49"]
[TimeControl "180+2"]
[WhiteFideId "34611231"]
[BlackFideId "1366750"]
[WhiteElo "1890"]
[BlackElo "1565"]
[WhiteClock "0:00:06"]
[BlackClock "0:00:08"]
[Variant "Standard"]
[EndDate "2026.07.19"]
[EndTime "14:01:14"]

1. e4 {[%clk 0:03:03]}  c6 {[%clk 0:03:03]} 2. d4 {[%clk 0:03:04]}  d5 {[%clk 0:03:04]} 3. exd5 {[%clk 0:03:05]}  cxd5 {[%clk 0:03:04]}
4. Bd3 {[%clk 0:03:06]}  Nc6 {[%clk 0:03:05]} 5. c3 {[%clk 0:03:07]}  Nf6 {[%clk 0:03:05]} 6. h3 {[%clk 0:03:09]}  e5 {[%clk 0:03:03]}
7. dxe5 {[%clk 0:03:09]}  Nxe5 {[%clk 0:03:02]} 8. Nf3 {[%clk 0:03:10]}  Nxd3+ {[%clk 0:03:00]} 9. Qxd3 {[%clk 0:03:11]}  Be7 {[%clk 0:02:57]}
10. O-O {[%clk 0:03:10]}  O-O {[%clk 0:02:57]} 11. Bf4 {[%clk 0:03:10]}  Bd6 {[%clk 0:02:30]} 12. Bxd6 {[%clk 0:03:02]}  Qxd6 {[%clk 0:02:30]}
13. Nbd2 {[%clk 0:03:01]}  h6 {[%clk 0:02:28]} 14. Rad1 {[%clk 0:02:57]}  Be6 {[%clk 0:02:27]} 15. Rfe1 {[%clk 0:02:49]}  Rac8 {[%clk 0:02:27]}
16. Nd4 {[%clk 0:02:45]}  Rfe8 {[%clk 0:02:20]} 17. Re3 {[%clk 0:02:10]}  a6 {[%clk 0:02:15]} 18. Rde1 {[%clk 0:02:10]}  b5 {[%clk 0:01:58]}
19. a3 {[%clk 0:01:56]}  Rc7 {[%clk 0:01:41]} 20. Nf5 {[%clk 0:01:50]}  Qd7 {[%clk 0:01:02]} 21. Ng3 {[%clk 0:01:33]}  g6 {[%clk 0:00:59]}
22. Nb3 {[%clk 0:01:30]}  Kg7 {[%clk 0:00:49]} 23. Nd4 {[%clk 0:01:29]}  Re7 {[%clk 0:00:27]} 24. f4 {[%clk 0:01:20]}  Ne4 {[%clk 0:00:17]}
25. Nxe4 {[%clk 0:01:13]}  dxe4 {[%clk 0:00:15]} 26. Rxe4 {[%clk 0:01:09]}  Bf5 {[%clk 0:00:15]} 27. Rxe7 {[%clk 0:00:59]}  Bxd3 {[%clk 0:00:15]}
28. Rxd7 {[%clk 0:00:59]}  Rxd7 {[%clk 0:00:15]} 29. Kf2 {[%clk 0:00:56]}  Bc4 {[%clk 0:00:15]} 30. f5 {[%clk 0:00:54]}  h5 {[%clk 0:00:14]}
31. fxg6 {[%clk 0:00:52]}  fxg6 {[%clk 0:00:14]} 32. Re3 {[%clk 0:00:49]}  Rf7+ {[%clk 0:00:13]} 33. Rf3 {[%clk 0:00:49]}  Rxf3+ {[%clk 0:00:13]}
34. Nxf3 {[%clk 0:00:49]}  Kf6 {[%clk 0:00:13]} 35. Ke3 {[%clk 0:00:44]}  a5 {[%clk 0:00:11]} 36. Nd4 {[%clk 0:00:42]}  g5 {[%clk 0:00:09]}
37. b3 {[%clk 0:00:38]}  Bf1 {[%clk 0:00:08]} 38. Kf2 {[%clk 0:00:32]}  Bd3 {[%clk 0:00:09]} 39. b4 {[%clk 0:00:29]}  axb4 {[%clk 0:00:09]}
40. axb4 {[%clk 0:00:29]}  Bc4 {[%clk 0:00:09]} 41. g3 {[%clk 0:00:26]}  g4 {[%clk 0:00:08]} 42. h4 {[%clk 0:00:26]}  Ke5 {[%clk 0:00:08]}
43. Ke3 {[%clk 0:00:27]}  Bf1 {[%clk 0:00:08]} 44. Nb3 {[%clk 0:00:22]}  Bc4 {[%clk 0:00:08]} 45. Nd2 {[%clk 0:00:22]}  Kd5 {[%clk 0:00:07]}
46. Nxc4 {[%clk 0:00:17]}  Kxc4 {[%clk 0:00:07]} 47. Kd2 {[%clk 0:00:18]}  Kd5 {[%clk 0:00:07]} 48. Kd3 {[%clk 0:00:18]}  Ke5 {[%clk 0:00:07]}
49. c4 {[%clk 0:00:19]}  Kd6 {[%clk 0:00:04]} 50. Kd4 {[%clk 0:00:17]}  bxc4 {[%clk 0:00:04]} 51. Kxc4 {[%clk 0:00:18]}  Ke5 {[%clk 0:00:05]}
52. Kc5 {[%clk 0:00:18]}  Ke4 {[%clk 0:00:06]} 53. b5 {[%clk 0:00:19]}  Kf3 {[%clk 0:00:07]} 54. b6 {[%clk 0:00:19]}  Kxg3 {[%clk 0:00:07]}
55. b7 {[%clk 0:00:20]}  Kh2 {[%clk 0:00:08]} 56. b8=Q+ {[%clk 0:00:20]}  g3 {[%clk 0:00:09]} 57. Kd4 {[%clk 0:00:21]}  Kh1 {[%clk 0:00:08]}
58. Qb1+ {[%clk 0:00:17]}  Kh2 {[%clk 0:00:08]} 59. Ke3 {[%clk 0:00:17]}  Kg2 {[%clk 0:00:06]} 60. Ke2 {[%clk 0:00:17]}  Kh3 {[%clk 0:00:06]}
61. Qh1+ {[%clk 0:00:16]}  Kg4 {[%clk 0:00:07]} 62. Qe4+ {[%clk 0:00:14]}  Kh3 {[%clk 0:00:08]} 63. Kf1 {[%clk 0:00:13]}  Kh2 {[%clk 0:00:08]}
64. Qg2+ {[%clk 0:00:06]} 1-0

[Event "2026 Biel Blitz Open"]
[Site "Biel, CH"]
[Date "2026.07.19"]
[Round "7"]
[White "Koehler, Noe"]
[Black "Leuthold, Cyrill"]
[Result "0-1"]
[Board "50"]
[TimeControl "180+2"]
[WhiteFideId "1362488"]
[BlackFideId "1333011"]
[WhiteElo "1639"]
[BlackElo "1887"]
[WhiteClock "0:00:12"]
[BlackClock "0:00:09"]
[Variant "Standard"]
[EndDate "2026.07.19"]
[EndTime "14:06:53"]

1. e4 {[%clk 0:03:04]}  d6 {[%clk 0:03:02]} 2. d4 {[%clk 0:03:03]}  Nf6 {[%clk 0:03:02]} 3. Nc3 {[%clk 0:03:04]}  g6 {[%clk 0:03:03]}
4. Nf3 {[%clk 0:03:04]}  Bg7 {[%clk 0:03:03]} 5. Be3 {[%clk 0:03:03]}  a6 {[%clk 0:02:52]} 6. Qd2 {[%clk 0:03:03]}  O-O {[%clk 0:02:47]}
7. Be2 {[%clk 0:03:04]}  Nc6 {[%clk 0:02:38]} 8. Bh6 {[%clk 0:02:48]}  e5 {[%clk 0:02:30]} 9. dxe5 {[%clk 0:02:37]}  dxe5 {[%clk 0:02:27]}
10. Qxd8 {[%clk 0:02:27]}  Rxd8 {[%clk 0:02:23]} 11. Bxg7 {[%clk 0:02:28]}  Kxg7 {[%clk 0:02:23]} 12. O-O {[%clk 0:02:28]}  Bg4 {[%clk 0:02:18]}
13. Rad1 {[%clk 0:02:26]}  Bxf3 {[%clk 0:02:16]} 14. Bxf3 {[%clk 0:02:26]}  Nd4 {[%clk 0:02:15]} 15. Rd3 {[%clk 0:01:41]}  Nxc2 {[%clk 0:01:59]}
16. Rfd1 {[%clk 0:01:28]}  Nd4 {[%clk 0:01:51]} 17. Kf1 {[%clk 0:01:12]}  Rd7 {[%clk 0:01:43]} 18. Na4 {[%clk 0:00:46]}  b6 {[%clk 0:01:40]}
19. Nc3 {[%clk 0:00:43]}  Rad8 {[%clk 0:01:37]} 20. Ne2 {[%clk 0:00:28]}  Kf8 {[%clk 0:00:48]} 21. Nxd4 {[%clk 0:00:28]}  Rxd4 {[%clk 0:00:44]}
22. Rxd4 {[%clk 0:00:26]}  Rxd4 {[%clk 0:00:41]} 23. Rxd4 {[%clk 0:00:26]}  exd4 {[%clk 0:00:42]} 24. Ke2 {[%clk 0:00:27]}  c5 {[%clk 0:00:40]}
25. b3 {[%clk 0:00:24]}  Ke7 {[%clk 0:00:40]} 26. Kd3 {[%clk 0:00:25]}  Kd6 {[%clk 0:00:31]} 27. Be2 {[%clk 0:00:22]}  Nd7 {[%clk 0:00:16]}
28. f4 {[%clk 0:00:22]}  f6 {[%clk 0:00:12]} 29. g4 {[%clk 0:00:22]}  Nf8 {[%clk 0:00:10]} 30. h4 {[%clk 0:00:23]}  Ne6 {[%clk 0:00:10]}
31. f5 {[%clk 0:00:09]}  Nf4+ {[%clk 0:00:10]} 32. Kd2 {[%clk 0:00:07]}  Nxe2 {[%clk 0:00:11]} 33. Kxe2 {[%clk 0:00:08]}  Ke5 {[%clk 0:00:11]}
34. Kd3 {[%clk 0:00:05]}  gxf5 {[%clk 0:00:11]} 35. exf5 {[%clk 0:00:05]}  b5 {[%clk 0:00:10]} 36. g5 {[%clk 0:00:04]}  Kxf5 {[%clk 0:00:09]}
37. gxf6 {[%clk 0:00:05]}  Kxf6 {[%clk 0:00:08]} 38. Ke4 {[%clk 0:00:05]}  Ke6 {[%clk 0:00:10]} 39. h5 {[%clk 0:00:07]}  a5 {[%clk 0:00:10]}
40. a3 {[%clk 0:00:08]}  b4 {[%clk 0:00:07]} 41. axb4 {[%clk 0:00:06]}  cxb4 {[%clk 0:00:07]} 42. h6 {[%clk 0:00:07]}  a4 {[%clk 0:00:07]}
43. bxa4 {[%clk 0:00:07]}  b3 {[%clk 0:00:08]} 44. Kd3 {[%clk 0:00:06]}  Kd6 {[%clk 0:00:08]} 45. a5 {[%clk 0:00:04]}  Kc6 {[%clk 0:00:09]}
46. Kd2 {[%clk 0:00:04]}  Kb5 {[%clk 0:00:09]} 47. Kc1 {[%clk 0:00:05]}  Kxa5 {[%clk 0:00:09]} 48. Kb2 {[%clk 0:00:06]}  Kb4 {[%clk 0:00:10]}
49. Kb1 {[%clk 0:00:06]}  Kc3 {[%clk 0:00:10]} 50. Kc1 {[%clk 0:00:08]}  d3 {[%clk 0:00:10]} 51. Kd1 {[%clk 0:00:09]}  Kb2 {[%clk 0:00:11]}
52. Kd2 {[%clk 0:00:10]}  Ka2 {[%clk 0:00:11]} 53. Kc3 {[%clk 0:00:10]}  b2 {[%clk 0:00:12]} 54. Kb4 {[%clk 0:00:11]}  b1=Q+ {[%clk 0:00:12]}
55. Ka4 {[%clk 0:00:12]}  d2 {[%clk 0:00:13]} 56. Ka5 {[%clk 0:00:12]}  d1=R {[%clk 0:00:09]} 0-1